bitfinex-derivatives/quotes_ETHF0:USTF0_20250904
["timestamp","ask_amount","ask_price","bid_price","bid_amount"]
[1756983244973,1.11143,4426.4,4426.3,0.4388]
[1756983246273,1.11143,4426.4,4426.3,0.231]
[1756983247070,4.31923,4426.4,4426.3,0.231]
[1756983248872,4.31923,4426.4,4426.0,0.3088]
[1756983249177,0.90316,4426.1,4426.0,0.7277]
[1756983249374,0.70225,4426.2,4426.1,0.7277]
[1756983249574,0.70225,4426.2,4426.1,2.44184767]
[1756983249770,0.70225,4426.2,4426.1,0.9587]
[1756983249978,0.70225,4426.2,4426.1,2.67284767]
[1756983250277,0.40655,4426.2,4426.1,2.67284767]
[1756983250480,0.40655,4426.3,4426.2,0.7277]
[1756983251378,0.60749,4425.8,4425.7,0.7277]
[1756983251578,0.81579,4425.8,4425.7,0.9587]
[1756983252076,1.11149,4425.8,4425.7,0.9587]
[1756983252984,0.40663,4425.4,4425.1,3.2078]
[1756983253175,0.1937,4425.0,4424.9,0.3076]
[1756983253375,1.09099,4424.7,4424.6,3.4067]
[1756983253582,1.09099,4424.7,4424.6,3.6377]
[1756983254383,1.09099,4424.7,4424.6,0.4299]
[1756983254595,1.09099,4424.7,4424.1,3.2078]
[1756983254596,0.40676,4424.0,4423.5,3.2078]
[1756983254789,0.69757,4423.8,4423.7,0.1989]
[1756983254984,1.09107,4423.8,4423.7,0.1989]
[1756983255595,1.09107,4423.8,4423.7,0.231]
[1756983256293,2.80521767,4423.8,4423.7,0.4299]
[1756983257193,2.80521767,4423.8,4423.7,0.231]
[1756983257497,0.89742,4423.3,4423.2,3.9071]
[1756983257689,0.60662,4423.3,4423.2,4.1381]
[1756983258195,0.40679,4423.6,4423.5,0.8208]
[1756983258404,0.89739,4423.6,4423.5,0.6993]
[1756983258597,1.09109,4423.6,4423.5,0.6993]
[1756983258792,1.09109,4423.6,4423.5,0.3917]
[1756983260102,1.09109,4423.6,4423.5,0.6993]
[1756983260484,1.09109,4423.6,4423.5,0.3917]
[1756983260696,1.09109,4423.6,4423.5,0.9303]
[1756983261200,1.09109,4423.6,4423.5,0.6227]
[1756983261791,1.09109,4423.6,4423.5,0.4299]
[1756983262298,2.80523767,4423.6,4423.5,0.4299]
[1756983262502,2.80523767,4423.6,4423.5,0.231]
[1756983264196,2.80523767,4423.6,4423.0,0.22805726]
[1756983264396,2.00494767,4423.2,4423.1,0.4299]
[1756983264693,0.4906,4423.2,4423.1,2.64444767]
[1756983264893,0.1998,4423.2,4423.1,2.64444767]
[1756983265498,0.40682,4423.3,4423.2,0.6993]
[1756983265996,0.4068,4423.5,4423.3,0.3076]
[1756983266202,0.4068,4423.5,4423.4,2.33684767]
[1756983266794,1.0911,4423.5,4423.4,0.9303]
[1756983267601,1.2097,4423.5,4423.4,0.9303]
[1756983267799,1.2097,4423.5,4423.4,0.6227]
[1756983268299,1.2097,4423.5,4423.4,0.4299]
[1756983268501,1.2097,4423.5,4423.4,0.231]
[1756983268701,0.6843,4422.9,4422.8,0.8711349]
[1756983268996,1.09116,4422.9,4422.8,1.1021349]
[1756983269794,1.09116,4422.9,4422.8,2.81628257]
[1756983270709,1.09116,4422.9,4422.8,1.1021349]
[1756983271401,1.09116,4422.9,4422.8,0.6017349]
[1756983272604,1.09116,4422.9,4422.8,0.4028349]
[1756983273209,1.09116,4422.9,4422.8,1.1021349]
[1756983274206,1.09116,4422.9,4422.8,0.6017349]
[1756983275508,1.09116,4422.9,4422.8,0.9093349]
[1756983275708,1.09116,4422.9,4422.8,0.6017349]
[1756983276304,1.09116,4422.9,4422.8,0.4028349]
[1756983276610,0.1998,4422.9,4422.8,2.81628257]
[1756983276905,0.60666,4422.9,4422.8,2.81628257]
[1756983278509,0.89746,4422.9,4422.8,2.81628257]
[1756983279307,1.09116,4422.9,4422.8,2.81628257]
[1756983280412,1.09116,4422.9,4422.8,1.1021349]
[1756983282213,1.09116,4422.9,4422.8,0.4028349]
[1756983282407,5.09116,4422.9,4422.8,0.1718349]
[1756983282609,0.40692,4422.2,4422.1,34.7017]
[1756983282814,0.70972,4422.2,4422.1,34.9327]
[1756983283008,0.70972,4422.2,4422.1,34.3878]
[1756983283214,0.70972,4422.2,4422.1,34.6188]
[1756983283408,0.70972,4422.2,4422.1,34.9327]
[1756983283809,1.21704,4422.0,4421.9,0.208]
[1756983284013,1.21704,4422.0,4421.9,0.9536]
[1756983284210,1.09334,4422.0,4421.9,0.9536]
[1756983284718,3.61469,4422.6,4422.5,0.8395]
[1756983284908,3.61469,4422.6,4422.5,3.029488]
[1756983284909,0.40689,4422.6,4422.5,3.029488]
[1756983285304,1.98651213,4425.3,4423.0,0.3176]
[1756983285305,0.40685,4423.1,4423.0,0.3176]
[1756983285515,0.40685,4423.1,4423.0,1.0715]
[1756983285718,0.59885,4423.1,4423.0,1.0715]
[1756983285912,1.09325,4423.1,4423.0,0.7226]
[1756983286111,1.09325,4423.1,4423.0,0.9556]
[1756983289212,0.59885,4423.1,4423.0,1.0725]
[1756983289413,0.90165,4423.1,4423.0,1.0725]
[1756983289813,0.90165,4423.1,4423.0,0.9556]
[1756983290014,1.09325,4423.1,4423.0,0.9556]
[1756983291714,0.113,4423.3,4423.1,0.3139]
[1756983291920,0.51982,4423.3,4423.2,0.9546]
[1756983292109,0.40682,4423.3,4423.2,0.9546]
[1756983292309,0.90162,4423.3,4423.2,0.9546]
[1756983292620,1.09322,4423.3,4423.2,0.6407]
[1756983295922,1.09322,4423.3,4423.2,0.9546]
[1756983297727,1.09322,4423.3,4423.2,0.6407]
[1756983298529,1.09322,4423.3,4423.2,0.44]
[1756983300124,0.59882,4423.3,4423.2,0.9546]
[1756983300430,0.40682,4423.3,4423.2,0.9546]
[1756983300623,0.113,4423.5,4423.4,0.7226]
[1756983300822,0.4068,4423.6,4423.4,2.680588]
[1756983301018,0.90157,4423.9,4423.8,0.7226]
[1756983301230,0.90157,4423.9,4423.8,0.9546]
[1756983301534,1.09317,4423.9,4423.8,0.9546]
[1756983302337,1.09317,4423.9,4423.8,0.44]
[1756983303028,0.40679,4423.6,4423.5,3.2078]
[1756983303234,1.09323,4423.2,4423.1,0.7226]
[1756983303533,1.09323,4423.2,4423.1,0.9546]
[1756983304128,1.09323,4423.2,4423.1,0.7226]
[1756983304331,1.09323,4423.2,4423.1,0.9546]
[1756983304635,1.09323,4423.2,4423.1,0.7226]
[1756983304836,1.09323,4423.2,4423.1,0.6407]
[1756983305042,1.09323,4423.2,4423.1,0.44]
[1756983306029,1.09328,4422.7,4422.6,3.9304]
[1756983306230,1.09328,4422.7,4422.6,0.9546]
[1756983307937,0.3836,4422.3,4422.2,5.20770659]
[1756983308141,1.09331,4422.3,4422.2,0.9546]
[1756983308629,0.59891,4422.3,4422.2,0.9546]
[1756983308829,0.40691,4422.3,4422.2,0.9546]
[1756983309928,0.90171,4422.3,4422.2,0.9546]
[1756983310133,1.09331,4422.3,4422.2,0.9546]
[1756983311333,1.09331,4422.3,4422.2,0.6407]
[1756983311537,1.09331,4422.3,4422.2,0.9546]
[1756983312040,1.09331,4422.3,4422.2,0.6407]
[1756983312240,1.09331,4422.3,4422.2,0.44]
[1756983312443,1.09331,4422.3,4422.2,0.232]
[1756983314432,1.11932,4422.2,4422.1,0.35]
[1756983315534,0.40692,4422.2,4422.1,1.0407]
[1756983315939,1.11932,4422.2,4422.1,0.583]
[1756983317047,1.11932,4422.2,4422.1,0.7848]
[1756983317235,1.11932,4422.2,4422.1,0.583]
[1756983317940,1.11932,4422.2,4422.1,0.7848]
[1756983318438,1.11932,4422.2,4422.1,0.583]
[1756983318844,1.11932,4422.2,4422.1,0.7848]
[1756983319440,1.11932,4422.2,4422.1,0.583]
[1756983320647,1.11942,4421.1,4421.0,2.69060659]
[1756983320843,1.11942,4421.1,4421.0,0.6369]
[1756983321439,1.11942,4421.1,4421.0,0.9237]
[1756983322345,0.60752,4421.1,4421.0,0.9237]
[1756983322546,0.40702,4421.1,4421.0,1.0451]
[1756983323951,0.91612,4421.1,4421.0,1.0451]
[1756983324253,1.11942,4421.1,4421.0,0.9237]
[1756983324449,1.11942,4421.1,4421.0,0.4039]
[1756983324754,1.11942,4421.1,4421.0,0.6369]
[1756983325759,1.11942,4421.1,4421.0,0.9237]
[1756983326258,1.11942,4421.1,4421.0,0.4348]
[1756983327846,0.81085,4420.8,4420.7,0.2018]
[1756983328052,1.23508,4420.5,4420.4,0.4886]
[1756983328250,1.23508,4420.5,4420.4,0.7216]
[1756983328450,1.23508,4420.5,4420.4,0.4348]
[1756983328858,1.23508,4420.5,4420.4,0.233]
[1756983329056,1.23508,4420.5,4420.4,0.4348]
[1756983329259,0.40708,4420.5,4420.4,0.9237]
[1756983330360,0.91618,4420.5,4420.4,0.9237]
[1756983331255,3.193068,4420.5,4420.4,0.2018]
[1756983331453,3.193068,4420.5,4420.4,0.232]
[1756983332063,1.23508,4420.5,4420.4,0.232]
[1756983332257,1.23508,4420.5,4420.4,0.4338]
[1756983333255,1.23508,4420.5,4420.4,0.2018]
[1756983333457,1.23508,4420.5,4420.4,0.4338]
[1756983333659,1.23508,4420.5,4420.4,0.2018]
[1756983333859,1.23508,4420.5,4420.4,0.4338]
[1756983334164,1.1195,4420.3,4420.2,3.4096]
[1756983334366,1.1195,4420.3,4420.2,3.6416]
[1756983334566,1.1195,4420.3,4420.2,3.4096]
[1756983334963,1.1195,4420.3,4420.2,3.6416]
[1756983335157,1.1195,4420.3,4420.2,3.4096]
[1756983335358,1.1195,4420.3,4420.2,3.6416]
[1756983335565,0.52016,4420.7,4420.6,0.4039]
[1756983335860,0.91616,4420.7,4420.6,0.9227]
[1756983336060,1.11946,4420.7,4420.6,0.9227]
[1756983336566,4.22531,4421.4,4420.6,0.9227]
[1756983336762,1.11941,4421.2,4421.1,0.2018]
[1756983337064,1.11941,4421.2,4421.1,0.4338]
[1756983338359,1.11941,4421.2,4421.1,0.6359]
[1756983338564,0.60751,4421.2,4421.1,0.9227]
[1756983338962,0.91611,4421.2,4421.1,0.9227]
[1756983339466,1.11941,4421.2,4421.1,0.9227]
[1756983340166,0.40701,4421.2,4421.1,0.9227]
[1756983340561,0.52,4421.4,4421.3,0.4039]
[1756983340766,0.407,4421.4,4421.3,0.6907]
[1756983341467,1.1194,4421.4,4421.3,0.4039]
[1756983341664,0.407,4421.4,4421.3,0.9227]
[1756983341859,0.51998,4421.6,4421.3,0.9227]
[1756983342059,0.51998,4421.6,4421.5,0.8121]
[1756983342262,0.113,4421.6,4421.5,0.8121]
[1756983342861,0.40697,4421.7,4421.5,0.8121]
[1756983343061,0.88737,4421.7,4421.6,0.9355]
[1756983344357,0.88737,4421.7,4421.5,0.1214]
[1756983344358,0.1938,4421.4,4421.3,0.1929]
[1756983344662,0.8874,4421.4,4421.3,0.9355]
[1756983345569,0.40699,4421.5,4421.3,0.6336]
[1756983345770,0.40699,4421.5,4421.4,0.7035]
[1756983345970,1.09109,4421.5,4421.4,0.9355]
[1756983347372,1.09109,4421.5,4421.4,0.7035]
[1756983347568,1.09109,4421.5,4421.4,0.9355]
[1756983347766,1.09109,4421.5,4421.4,0.7035]
[1756983348269,1.09109,4421.5,4421.4,0.9355]
[1756983349270,1.21239,4421.5,4421.4,0.6336]
[1756983350477,1.21239,4421.5,4421.4,0.9355]
[1756983350670,1.21239,4421.5,4421.4,0.6336]
[1756983351174,1.21239,4421.5,4421.4,0.9355]
[1756983353574,1.09109,4421.5,4421.4,0.9355]
[1756983354878,1.21239,4421.5,4421.4,0.9355]
[1756983356680,1.09109,4421.5,4421.4,0.9355]
[1756983356873,0.88739,4421.5,4421.4,0.9355]
[1756983357474,1.09109,4421.5,4421.4,0.9355]
[1756983358181,1.21239,4421.5,4421.4,0.9355]
[1756983359079,1.21239,4421.5,4421.4,0.7035]
[1756983359278,1.21239,4421.5,4421.4,0.9355]
[1756983359478,1.21239,4421.5,4421.4,0.6336]
[1756983360379,0.88739,4421.5,4421.4,0.9355]
[1756983360577,0.40699,4421.5,4421.4,0.9355]
[1756983360780,0.60079,4421.5,4421.4,0.9355]
[1756983360980,0.88739,4421.5,4421.4,0.9355]
[1756983361486,0.88739,4421.5,4421.4,2.65398736]
[1756983361782,0.40699,4421.5,4421.4,0.9355]
[1756983361980,0.88739,4421.5,4421.4,0.9355]
[1756983362669,1.09109,4421.5,4421.4,0.9355]
[1756983362874,0.88739,4421.5,4421.4,0.9355]
[1756983363587,1.09109,4421.5,4421.4,0.9355]
[1756983364779,0.4804,4421.5,4421.4,0.9355]
[1756983365482,0.88739,4421.5,4421.4,0.9355]
[1756983365884,0.6841,4421.5,4421.4,0.9355]
[1756983366086,1.09109,4421.5,4421.4,0.9355]
[1756983367982,0.6841,4421.5,4421.4,0.9355]
[1756983368584,1.09109,4421.5,4421.4,0.9355]
[1756983368789,0.6841,4421.5,4421.4,0.9355]
[1756983370391,0.6841,4421.5,4421.4,2.93540659]
[1756983372191,0.6841,4421.5,4421.4,2.70340659]
[1756983372492,0.6841,4421.5,4421.4,2.93440659]
[1756983374588,0.2951,4421.6,4421.4,2.63250659]
[1756983374792,0.4845,4421.6,4421.5,0.7075]
[1756983375189,0.4845,4421.6,4421.5,2.42598736]
[1756983375386,0.6854,4421.6,4421.5,2.42598736]
[1756983376292,0.113,4421.7,4421.6,0.3079]
[1756983376594,0.2951,4422.0,4421.7,0.3079]
[1756983376792,0.4845,4422.7,4422.6,0.7075]
[1756983376991,0.6854,4422.7,4422.6,0.9385]
[1756983377192,0.6854,4422.7,4422.6,0.6306]
[1756983377388,0.6854,4422.7,4422.6,0.4379]
[1756983377796,1.09228,4422.7,4422.6,0.4379]
[1756983377989,0.6854,4422.7,4422.6,0.4379]
[1756983378394,1.09228,4422.7,4422.6,0.4379]
[1756983378594,0.6854,4422.7,4422.6,0.4379]
[1756983379496,0.40698,4421.6,4421.5,2.87537167]
[1756983379699,1.09238,4421.6,4421.5,0.231]
[1756983381701,0.3903,4421.2,4421.1,2.53332031]
[1756983381894,0.6854,4421.2,4421.1,2.76432031]
[1756983382801,0.6854,4421.2,4421.1,2.95702031]
[1756983383402,0.6854,4421.2,4421.1,2.72602031]
[1756983383602,0.6854,4421.2,4421.1,2.95702031]
[1756983383897,0.6854,4421.2,4421.1,2.72602031]
[1756983384104,0.6854,4421.2,4421.1,2.95702031]
[1756983384403,0.6854,4421.2,4421.1,0.9385]
[1756983384699,0.6854,4421.2,4421.1,2.95702031]
[1756983385297,0.6854,4421.2,4421.1,2.72602031]
[1756983385498,0.6854,4421.2,4421.1,2.95702031]
[1756983388803,0.6854,4421.2,4421.1,2.22542031]
[1756983389105,1.09241,4421.2,4421.1,0.4379]
[1756983389303,1.09241,4421.2,4421.1,0.231]
[1756983389998,1.09241,4421.2,4420.9,31.217]
[1756983389999,0.1213,4421.0,4420.9,31.217]
[1756983390203,0.4164,4421.0,4420.9,31.217]
[1756983390408,0.4164,4421.0,4420.9,31.448]
[1756983390804,0.4164,4421.0,4420.9,31.7559]
[1756983392006,0.82343,4421.0,4420.9,31.7559]
[1756983392205,0.4164,4421.0,4420.9,31.7559]
[1756983392597,0.2951,4421.0,4420.9,31.7559]
[1756983393199,0.2951,4421.0,4420.9,31.5249]
[1756983393400,0.2951,4421.0,4420.9,31.7559]
[1756983394408,0.2951,4421.0,4420.9,31.5249]
[1756983394607,0.82343,4421.0,4420.9,31.217]
[1756983394808,0.82343,4421.0,4420.9,31.7559]
[1756983396402,0.82343,4421.0,4420.9,31.217]
[1756983396610,0.82343,4421.0,4420.9,31.448]
[1756983398311,0.3903,4420.6,4420.5,0.7075]
[1756983398506,0.2951,4420.8,4420.5,0.7516]
[1756983398704,0.40706,4420.7,4420.6,0.7075]
[1756983398905,0.70216,4420.7,4420.6,0.7075]
[1756983399212,0.89156,4420.7,4420.6,0.7075]
[1756983399609,1.09246,4420.7,4420.6,0.7075]
[1756983400014,1.09246,4420.7,4420.6,0.6306]
[1756983400208,1.09246,4420.7,4420.6,0.3996]
[1756983400510,1.09246,4420.7,4420.6,0.6306]
[1756983401909,0.40709,4420.5,4420.3,0.3079]
[1756983402115,0.7979,4420.5,4420.4,0.748]
[1756983402415,0.89497,4420.7,4420.6,0.4091]
[1756983402615,0.89497,4420.7,4420.6,0.9502]
[1756983404517,1.09887,4420.7,4420.6,0.9502]
[1756983405914,1.09887,4420.7,4420.6,0.7192]
[1756983406114,1.09887,4420.7,4420.6,0.9502]
[1756983407018,1.09887,4420.7,4420.6,0.7192]
[1756983407217,1.09887,4420.7,4420.6,0.9502]
[1756983408219,1.09887,4420.7,4420.6,0.7192]
[1756983408422,1.09887,4420.7,4420.6,0.9502]
[1756983411218,0.40712,4420.0,4419.9,0.3101]
[1756983411419,0.40712,4420.0,4419.9,0.9502]
[1756983411720,1.09892,4420.0,4419.9,0.9502]
[1756983411922,3.2078,4420.8,4419.9,0.9502]
[1756983411923,0.6934,4420.3,4420.2,0.4091]
[1756983412121,0.6934,4420.3,4420.2,0.7192]
[1756983412319,0.895,4420.3,4420.2,0.7192]
[1756983412620,1.0989,4420.3,4420.2,0.9502]
[1756983413922,1.0989,4420.3,4420.2,0.7192]
[1756983414224,1.0989,4420.3,4420.2,0.4375]
[1756983414823,1.0989,4420.3,4420.2,0.7476]
[1756983415321,1.0989,4420.3,4420.2,0.4375]
[1756983415522,1.0989,4420.3,4420.2,0.231]
[1756983415916,0.60873,4419.9,4419.8,0.7192]
[1756983416116,0.89503,4419.9,4419.8,0.9502]
[1756983416517,0.40713,4420.0,4419.8,0.6401]
[1756983416724,0.40713,4420.0,4419.9,2.67930832]
[1756983416921,0.69343,4420.0,4419.9,2.67930832]
[1756983417222,0.89503,4420.0,4419.9,2.67930832]
[1756983417722,0.89503,4420.0,4419.9,2.91030832]
[1756983418118,0.89503,4420.0,4419.9,0.9502]
[1756983418321,0.89503,4420.0,4419.9,2.91030832]
[1756983418724,0.40713,4420.0,4419.9,2.91030832]
[1756983418924,0.40713,4420.0,4419.9,2.67930832]
[1756983419132,0.40713,4420.0,4419.9,2.91030832]
[1756983419421,1.09893,4420.0,4419.9,0.7192]
[1756983419620,0.40713,4420.0,4419.9,0.9502]
[1756983420518,2.03502,4421.4,4419.9,0.9502]
[1756983420519,0.40702,4421.2,4420.7,0.4091]
[1756983420825,1.09881,4421.2,4421.1,0.4091]
[1756983421023,1.09881,4421.2,4421.1,0.4375]
[1756983421224,0.40701,4421.3,4421.1,0.6401]
[1756983421425,0.40701,4421.3,4421.2,2.67930832]
[1756983421818,0.89491,4421.3,4421.2,0.7192]
[1756983423025,0.89491,4421.3,4421.2,0.9502]
[1756983427528,1.09884,4420.9,4420.8,0.2065]
[1756983427921,0.1215,4421.0,4420.4,0.7192]
[1756983427922,1.09888,4420.5,4420.4,0.7192]
[1756983428422,1.09888,4420.5,4420.4,0.9502]
[1756983429133,1.09888,4420.5,4420.4,0.7192]
[1756983429323,1.09888,4420.5,4420.4,0.6401]
[1756983429324,1.22038,4420.5,4420.4,0.6401]
[1756983429722,1.22038,4420.5,4420.4,0.4375]
[1756983431932,1.22038,4420.5,4420.4,0.231]
[1756983432236,0.40712,4420.0,4419.9,0.3101]
[1756983432531,1.20642,4420.0,4419.9,0.231]
[1756983432925,1.20642,4420.0,4419.9,0.4327]
[1756983433328,1.20642,4420.0,4419.9,0.9189]
[1756983433931,1.20642,4420.0,4419.9,0.6245]
[1756983434334,1.20642,4420.0,4419.9,0.4327]
[1756983434722,0.69264,4419.8,4419.7,31.5084]
[1756983434924,0.69264,4419.8,4419.7,31.7394]
[1756983435121,0.69264,4419.8,4419.7,31.445]
[1756983435533,0.69264,4419.8,4419.7,31.7394]
[1756983436825,0.69264,4419.8,4419.7,31.5084]
[1756983437028,0.69264,4419.8,4419.7,31.7394]
[1756983438222,0.69264,4419.8,4419.7,31.5084]
[1756983438426,0.69264,4419.8,4419.7,31.7394]
[1756983438726,0.69264,4419.8,4419.7,31.214]
[1756983438936,0.69264,4419.8,4419.7,31.445]
[1756983439235,0.6852,4419.7,4419.6,3.2078]
[1756983439421,0.6852,4419.7,4419.6,3.4388]
[1756983439628,0.6852,4419.7,4419.6,0.231]
[1756983439930,1.09239,4419.3,4419.2,0.4961]
[1756983440232,1.09239,4419.3,4419.2,0.7271]
[1756983440629,1.09239,4419.3,4419.2,0.9189]
[1756983441731,0.69263,4419.9,4419.8,0.6879]
[1756983442036,0.40713,4419.9,4419.8,2.87900832]
[1756983442434,0.40713,4419.9,4419.8,0.9189]
[1756983442632,0.88993,4419.9,4419.8,0.9189]
[1756983443526,0.40713,4419.9,4419.8,0.9189]
[1756983443726,0.2855,4420.2,4419.8,0.9189]
[1756983444037,1.00299,4420.4,4420.3,0.6879]
[1756983444236,0.88989,4420.4,4420.3,0.9189]
[1756983444637,1.09229,4420.4,4420.3,0.9189]
[1756983445137,1.09229,4420.4,4420.3,0.231]
[1756983448336,0.88993,4419.9,4419.8,0.6879]
[1756983448640,0.88993,4419.9,4419.8,0.9189]
[1756983448839,0.40713,4419.9,4419.8,0.9189]
[1756983454842,0.88993,4419.9,4419.8,2.87900832]
[1756983455642,1.09233,4419.9,4419.8,2.87900832]
[1756983457840,1.09236,4419.6,4419.5,2.01852031]
[1756983458039,0.7993,4419.5,4419.1,3.2078]
[1756983458241,1.0924,4419.2,4419.1,3.8957]
[1756983458547,1.0924,4419.2,4419.1,0.3935]
[1756983458942,1.0924,4419.2,4419.1,0.6245]
[1756983459144,1.0924,4419.2,4419.1,0.231]
[1756983459840,0.40721,4419.1,4419.0,0.5]
[1756983460042,8.30021,4419.1,4419.0,0.5]
[1756983460242,4.30021,4419.1,4419.0,0.7017]
[1756983460545,4.30021,4419.1,4419.0,0.9327]
[1756983460844,4.30021,4419.1,4419.0,0.731]
[1756983461146,4.30021,4419.1,4419.0,0.9327]
[1756983462047,4.30021,4419.1,4419.0,0.731]
[1756983462847,4.30021,4419.1,4419.0,1.4284]
[1756983463247,4.30021,4419.1,4419.0,0.731]
[1756983463841,4.30021,4419.1,4419.0,0.9213]
[1756983464044,4.30021,4419.1,4419.0,1.4284]
[1756983464251,4.30021,4419.1,4419.0,3.14913056]
[1756983464846,4.30021,4419.1,4419.0,0.731]
[1756983466049,4.30021,4419.1,4419.0,0.03689]
[1756983466351,4.30021,4419.1,4419.0,1e-05]
[1756983466653,0.1177,4419.0,4418.9,1e-05]
[1756983466853,0.8207,4419.0,4418.9,1e-05]
[1756983467854,0.8207,4419.0,4418.1,3.2078]
[1756983467855,1.11027,4418.4,4418.3,1.72073056]
[1756983468155,1.11027,4418.4,4418.3,1.95173056]
[1756983468351,0.4028,4417.7,4417.6,4.13195087]
[1756983468550,0.40734,4417.7,4417.6,2.64913056]
[1756983468954,0.23487636,4418.6,4418.5,0.5141]
[1756983469154,1.13107,4419.4,4418.5,0.5141]
[1756983469155,1.01798,4419.3,4419.0,0.1214]
[1756983469350,0.9098,4419.2,4419.1,0.9284]
[1756983469544,1.01804,4419.1,4418.8,0.1903]
[1756983469750,1.11023,4418.9,4418.5,0.3047]
[1756983470052,1.11025,4418.6,4418.4,31.23]
[1756983470251,0.4179,4418.5,4418.4,31.23]
[1756983470552,0.4073,4418.1,4418.0,3.2078]
[1756983470850,1.1103,4418.1,4418.0,4.1362]
[1756983471052,0.9099,4418.1,4418.0,4.1372]
[1756983471256,0.4073,4418.1,4418.0,5.97933056]
[1756983476060,0.7075,4418.1,4418.0,5.97933056]
[1756983476259,0.9099,4418.1,4418.0,4.1372]
[1756983476451,0.9099,4418.1,4418.0,5.62593056]
[1756983476452,1.1103,4418.1,4418.0,5.62593056]
[1756983476751,0.52506,4417.5,4417.4,3.3981]
[1756983476956,1.22806,4417.5,4417.4,5.85793056]
[1756983477349,0.90996,4417.5,4417.4,5.85793056]
[1756983478352,1.22806,4417.5,4417.4,5.55323056]
[1756983478957,0.90996,4417.5,4417.4,5.85793056]
[1756983479555,0.70756,4417.5,4417.4,5.85793056]
[1756983480157,1.22806,4417.5,4417.4,2.41813056]
[1756983480355,1.22806,4417.5,4417.4,2.65013056]
[1756983480556,0.40736,4417.5,4417.4,2.65013056]
[1756983481263,0.70756,4417.5,4417.0,0.0812]
[1756983481558,1.01833,4417.8,4417.6,0.035]
[1756983481760,0.40733,4417.8,4417.7,1.98773056]
[1756983481950,0.40733,4417.8,4417.7,1.99863056]
[1756983482147,0.70753,4417.8,4417.7,1.99863056]
[1756983482660,0.40733,4417.8,4417.7,0.2779]
[1756983484456,0.70753,4417.8,4417.7,0.0459]
[1756983484655,0.70753,4417.8,4417.7,0.2779]
[1756983485257,0.70753,4417.8,4417.7,0.267]
[1756983485459,0.90993,4417.8,4417.7,0.267]
[1756983486059,1.11033,4417.8,4417.7,1.98773056]
[1756983487269,1.11033,4417.8,4417.7,4.00625087]
[1756983487465,1.11033,4417.8,4417.7,3.77425087]
[1756983487766,1.11033,4417.8,4417.7,4.00525087]
[1756983488160,0.90993,4417.8,4417.7,4.00525087]
[1756983488760,0.90993,4417.8,4417.7,1.98673056]
[1756983490165,1.72133,4417.8,4417.6,1.72073056]
[1756983490370,0.81013,4417.8,4417.7,2.25767677]
[1756983490667,0.81013,4417.8,4417.7,0.231]
[1756983490967,1.11033,4417.8,4417.7,0.231]
[1756983491571,1.11033,4417.8,4417.7,0.266]
[1756983491763,0.90993,4417.8,4417.7,0.266]
[1756983491970,1.11033,4417.8,4417.7,0.266]
[1756983493365,1.11033,4417.8,4417.7,0.2485]
[1756983494971,1.11033,4417.8,4417.7,0.2663]
[1756983495673,1.11033,4417.8,4417.7,1.98703056]
[1756983496669,0.40734,4417.7,4417.6,2.02667677]
[1756983496872,0.40736,4417.5,4417.4,1.72073056]
[1756983497070,0.52256,4417.5,4417.4,1.95173056]
[1756983497262,0.52256,4417.5,4417.4,0.231]
[1756983497466,0.52256,4417.5,4417.4,1.95173056]
[1756983497467,1.24026,4417.5,4417.4,1.95173056]
[1756983498169,1.24026,4417.5,4417.4,1.96963056]
[1756983500076,1.24026,4417.5,4417.4,0.2489]
[1756983500263,1.24026,4417.5,4417.4,3.99630733]
[1756983502066,1.24026,4417.5,4417.4,4.01420733]
[1756983502380,1.24026,4417.5,4417.4,3.99630733]
[1756983503384,1.24026,4417.5,4417.4,2.27557677]
[1756983503574,1.24026,4417.5,4417.4,3.99630733]
[1756983504474,1.24026,4417.5,4417.4,2.25767677]
[1756983504875,1.24026,4417.5,4417.4,0.231]
[1756983505281,1.24026,4417.5,4417.4,2.25767677]
[1756983505573,2.96099056,4417.5,4417.4,2.02667677]
[1756983505780,2.96099056,4417.5,4417.0,0.92850167]
[1756983505781,1.12509,4417.1,4417.0,0.92850167]
[1756983505977,1.12511,4416.9,4416.8,2.87537167]
[1756983506182,0.83235,4416.5,4416.4,31.234]
[1756983506375,0.83235,4416.5,4416.4,31.465]
[1756983507879,0.83235,4416.5,4416.4,31.7767]
[1756983508179,0.83235,4416.5,4416.4,31.465]
[1756983508483,0.71715,4416.5,4416.4,33.49743056]
[1756983509189,0.83235,4416.5,4416.4,31.5457]
[1756983509384,0.83235,4416.5,4416.4,31.7767]
[1756983509982,3.81859,4417.1,4417.0,0.8331]
[1756983510179,4.33289,4417.1,4417.0,0.9508]
[1756983510574,4.33289,4417.1,4417.0,0.231]
[1756983510886,4.33289,4417.1,4417.0,0.9508]
[1756983511184,4.33289,4417.1,4417.0,0.7198]
[1756983511387,4.33289,4417.1,4417.0,0.9508]
[1756983513988,4.33289,4417.1,4417.0,0.8331]
[1756983514286,4.33289,4417.1,4417.0,0.9508]
[1756983515283,4.33289,4417.1,4416.4,34.4418]
[1756983515284,1.01856,4416.8,4416.4,34.4418]
[1756983515482,0.3097,4417.0,4416.7,2.12883056]
[1756983515682,0.4074,4417.0,4416.9,0.7198]
[1756983515887,0.4074,4417.0,4416.9,0.9518]
[1756983516092,0.1131,4417.3,4417.1,0.3117]
[1756983516283,0.1131,4417.3,4417.0,0.1133]
[1756983516284,0.1131,4417.3,4417.2,2.67253056]